bitfinex-derivatives/quotes_BTCF0:USTF0_20241013
["timestamp","ask_amount","ask_price","bid_price","bid_amount"]
[1728817446615,0.0024,62787.0,62786.0,0.56335778]
[1728817446817,0.0609,62802.0,62792.0,0.0004]
[1728817447012,0.0303,62815.0,62801.0,0.3608]
[1728817447206,0.0327,62814.0,62801.0,0.3608]
[1728817448108,0.001,62802.0,62801.0,0.3608]
[1728817449109,0.00338915,62805.0,62801.0,0.3618]
[1728817449305,0.00338915,62805.0,62804.0,0.06358478]
[1728817450119,0.00338915,62805.0,62803.0,0.06358478]
[1728817450306,0.0004,62804.0,62803.0,0.06358478]
[1728817450713,0.04266399,62804.0,62801.0,0.3628]
[1728817450912,0.0004,62802.0,62801.0,0.3628]
[1728817451111,0.09173446,62802.0,62801.0,0.3628]
[1728817451309,0.09173446,62802.0,62801.0,0.3677798]
[1728817451508,0.09173446,62802.0,62801.0,0.3667798]
[1728817452219,0.09173446,62802.0,62801.0,0.3677798]
[1728817452609,0.09173446,62802.0,62801.0,0.3667798]
[1728817452908,0.09173446,62802.0,62801.0,0.0059798]
[1728817453208,0.09173446,62802.0,62801.0,0.3618]
[1728817453716,0.09173446,62802.0,62801.0,0.28312056]
[1728817454718,0.09173446,62802.0,62801.0,0.001]
[1728817456106,0.1273733,62802.0,62801.0,0.001]
[1728817456518,0.0004,62802.0,62801.0,0.001]
[1728817456713,0.09173446,62802.0,62801.0,0.001]
[1728817457019,0.14659402,62802.0,62801.0,0.001]
[1728817457818,0.0316,62804.0,62801.0,0.001]
[1728817457819,0.0316,62804.0,62801.0,0.5851422]
[1728817458011,0.0316,62804.0,62801.0,0.3622]
[1728817458217,0.0316,62804.0,62802.0,0.22359101]
[1728817458514,0.0316,62804.0,62803.0,0.22359101]
[1728817458718,0.0316,62804.0,62803.0,0.10200498]
[1728817458925,0.0316,62804.0,62803.0,0.22361123]
[1728817459112,0.0316,62804.0,62803.0,0.2236134]
[1728817459620,0.0316,62804.0,62796.0,0.11145222]
[1728817459621,1.10928,62804.0,62796.0,0.11145222]
[1728817459809,0.3608,62800.0,62797.0,0.12123961]
[1728817460016,0.3608,62800.0,62792.0,0.11185222]
[1728817460226,0.3608,62800.0,62793.0,0.12165597]
[1728817460430,0.3608,62800.0,62794.0,0.12165597]
[1728817460623,0.3608,62800.0,62795.0,0.12165597]
[1728817460922,0.3608,62800.0,62796.0,0.001]
[1728817461119,0.47772,62799.0,62792.0,0.0004]
[1728817461327,0.47772,62799.0,62793.0,0.12046243]
[1728817461521,0.47776,62798.0,62794.0,0.12046243]
[1728817461824,0.47772,62799.0,62795.0,0.12046243]
[1728817462026,0.47772,62799.0,62793.0,0.001]
[1728817462219,0.47772,62798.0,62794.0,0.12048615]
[1728817462416,1.07772,62798.0,62793.0,0.001]
[1728817462623,0.3612,62794.0,62793.0,0.001]
[1728817463225,1.43896,62794.0,62792.0,0.0004]
[1728817463522,0.0004,62793.0,62792.0,0.0004]
[1728817464023,0.47816,62793.0,62792.0,0.0004]
[1728817464225,0.50836,62793.0,62792.0,0.0004]
[1728817464426,1.10836,62793.0,62792.0,0.0014]
[1728817465024,1.11036,62793.0,62792.0,0.0014]
[1728817466133,1.11036,62793.0,62792.0,0.0024]
[1728817466626,0.87116,62793.0,62792.0,0.0024]
[1728817467227,1.47216,62793.0,62792.0,0.0024]
[1728817467431,1.11136,62793.0,62792.0,0.0024]
[1728817467727,1.47216,62793.0,62792.0,0.0024]
[1728817469732,0.87216,62793.0,62792.0,0.0024]
[1728817470331,1.47216,62793.0,62786.0,0.0004]
[1728817470633,0.0004,62787.0,62786.0,0.0004]
[1728817470821,0.3612,62787.0,62786.0,0.0004]
[1728817472820,0.30540849,62787.0,62786.0,0.12021581]
[1728817473022,0.30540849,62787.0,62786.0,0.12061581]
[1728817473219,0.30540849,62787.0,62786.0,0.12061554]
[1728817473415,0.30540849,62787.0,62786.0,0.12161554]
[1728817474029,0.30840849,62787.0,62786.0,0.12161554]
[1728817474422,0.31140849,62787.0,62786.0,0.12161554]
[1728817474625,0.31140849,62787.0,62786.0,0.22171231]
[1728817476429,1.41783092,62787.0,62786.0,0.22171231]
[1728817477623,1.41783092,62787.0,62786.0,0.10200256]
[1728817477829,1.37000749,62787.0,62786.0,0.22144017]
[1728817478723,1.37000749,62787.0,62784.0,0.0004]
[1728817478925,0.0004,62785.0,62777.0,0.3608]
[1728817479136,0.0004,62778.0,62777.0,0.3608]
[1728817480539,0.0004,62778.0,62777.0,0.3658]
[1728817481436,0.0004,62778.0,62777.0,0.3678]
[1728817482935,0.0004,62778.0,62777.0,0.007]
[1728817483939,0.0004,62778.0,62777.0,0.05467953]
[1728817484134,0.0004,62778.0,62777.0,0.007]
[1728817485143,0.47828,62778.0,62777.0,0.007]
[1728817485945,1.07828,62778.0,62777.0,0.007]
[1728817486134,1.10682983,62778.0,62777.0,0.007]
[1728817488946,1.46762983,62778.0,62777.0,0.007]
[1728817489649,1.10682983,62778.0,62777.0,0.007]
[1728817489835,1.46762983,62778.0,62777.0,0.007]
[1728817490948,0.98974983,62778.0,62777.0,0.007]
[1728817491144,1.46762983,62778.0,62777.0,0.007]
[1728817493751,1.10682983,62778.0,62777.0,0.007]
[1728817493954,1.46762983,62778.0,62777.0,0.007]
[1728817494747,0.38974983,62778.0,62768.0,0.0314]
[1728817494941,0.0004,62769.0,62768.0,0.0314]
[1728817497356,0.0014,62769.0,62768.0,0.0454]
[1728817497556,0.0014,62769.0,62768.0,0.0564]
[1728817498553,0.0024,62769.0,62768.0,0.0564]
[1728817499051,0.3608,62772.0,62768.0,0.0564]
[1728817499250,0.3608,62772.0,62768.0,0.0568]
[1728817500356,0.3608,62772.0,62768.0,0.0428]
[1728817500556,0.3618,62772.0,62768.0,0.0568]
[1728817501663,0.001,62772.0,62768.0,0.0568]
[1728817503058,0.04600915,62771.0,62768.0,0.0568]
[1728817503260,0.001,62772.0,62768.0,0.0568]
[1728817503455,0.04601114,62771.0,62768.0,0.0568]
[1728817503655,0.04601114,62770.0,62768.0,0.0568]
[1728817503963,0.001,62772.0,62768.0,0.0568]
[1728817504156,0.04602103,62771.0,62768.0,0.0568]
[1728817504352,0.04602103,62770.0,62768.0,0.0568]
[1728817504654,0.3608,62773.0,62768.0,0.0568]
[1728817504655,0.001,62771.0,62768.0,0.0568]
[1728817504852,0.04603458,62770.0,62768.0,0.0568]
[1728817505055,0.04603458,62769.0,62768.0,0.0568]
[1728817505246,0.04603458,62770.0,62768.0,0.0568]
[1728817505450,0.04603458,62769.0,62768.0,0.0568]
[1728817505655,0.04603458,62770.0,62768.0,0.0568]
[1728817505867,0.04603458,62769.0,62768.0,0.0568]
[1728817506160,0.09955439,62769.0,62768.0,0.02462894]
[1728817506663,0.16048597,62769.0,62768.0,0.02462894]
[1728817506861,0.30309034,62769.0,62768.0,0.02462894]
[1728817507254,0.16048597,62769.0,62768.0,0.011]
[1728817507454,0.16148597,62769.0,62768.0,0.025]
[1728817508162,0.16148597,62769.0,62768.0,0.014]
[1728817508361,0.16148597,62769.0,62768.0,0.025]
[1728817508957,0.52228597,62769.0,62768.0,0.025]
[1728817509774,0.68073527,62769.0,62768.0,0.025]
[1728817510267,1.60024597,62769.0,62768.0,0.025]
[1728817510866,1.43976,62769.0,62768.0,0.025]
[1728817511663,0.83976,62769.0,62768.0,0.025]
[1728817513758,0.83876,62769.0,62768.0,0.011]
[1728817514059,0.83876,62769.0,62768.0,0.007]
[1728817514564,0.47796,62769.0,62768.0,0.007]
[1728817514768,0.83876,62769.0,62768.0,0.007]
[1728817515067,1.43876,62769.0,62768.0,0.007]
[1728817515369,0.83876,62769.0,62768.0,0.007]
[1728817515762,0.3608,62769.0,62768.0,0.007]
[1728817517860,0.51981174,62769.0,62768.0,0.007]
[1728817518068,0.51981174,62769.0,62765.0,0.01691971]
[1728817518372,0.0004,62766.0,62765.0,0.01691971]
[1728817518866,0.15948352,62766.0,62765.0,0.01691971]
[1728817520368,0.3184047,62766.0,62765.0,0.01691971]
[1728817520670,0.3184047,62766.0,62765.0,0.02991971]
[1728817521775,0.3194047,62766.0,62765.0,0.02891971]
[1728817522073,0.16048352,62766.0,62765.0,0.02891971]
[1728817523461,0.67957228,62766.0,62765.0,0.02891971]
[1728817523974,0.5206511,62766.0,62765.0,0.02891971]
[1728817524274,0.1598511,62766.0,62765.0,0.02891971]
[1728817524570,0.5206511,62766.0,62765.0,0.02891971]
[1728817525857,0.5206511,62766.0,62765.0,0.10831884]
[1728817525858,0.3622,62766.0,62765.0,0.10831884]
[1728817526058,0.0014,62766.0,62765.0,0.10831884]
[1728817526264,0.3622,62766.0,62765.0,0.10831884]
[1728817526959,0.0014,62766.0,62765.0,0.10831884]
[1728817527157,0.3622,62766.0,62765.0,0.10831884]
[1728817528160,0.3622,62766.0,62765.0,0.12787137]
[1728817528366,0.2624,62766.0,62765.0,0.12787137]
[1728817528566,0.2624,62766.0,62765.0,0.12827137]
[1728817528765,0.3608,62773.0,62765.0,0.60684767]
[1728817528965,0.3608,62773.0,62771.0,0.0796087]
[1728817529166,0.3608,62773.0,62772.0,0.0796087]
[1728817529471,0.3608,62773.0,62772.0,0.17827501]
[1728817529972,0.02916866,62775.0,62772.0,0.17827501]
[1728817530176,0.3608,62783.0,62774.0,0.07959859]
[1728817531279,0.3608,62783.0,62773.0,0.07959859]
[1728817531474,0.0004,62774.0,62773.0,0.07959859]
[1728817531671,0.0004,62774.0,62773.0,0.17810655]
[1728817532977,0.0004,62774.0,62770.0,0.3608]
[1728817533180,0.0004,62771.0,62770.0,0.3608]
[1728817533568,0.0004,62771.0,62768.0,0.04774578]
[1728817533774,0.0004,62769.0,62765.0,0.04814578]
[1728817533974,0.0004,62769.0,62765.0,0.0004]
[1728817533975,0.0004,62766.0,62765.0,0.0004]
[1728817535072,0.0004,62766.0,62765.0,0.0084]
[1728817536477,0.0004,62766.0,62765.0,0.0134]
[1728817537281,0.0004,62766.0,62765.0,0.0054]
[1728817537482,0.0014,62766.0,62765.0,0.0134]
[1728817541003,0.0468096,62766.0,62765.0,0.00594239]
[1728817541292,0.15956803,62766.0,62765.0,0.00594239]
[1728817541892,0.15974528,62766.0,62765.0,0.00594239]
[1728817542090,0.15974528,62766.0,62765.0,0.0026357]
[1728817543489,0.22166895,62766.0,62765.0,0.0026357]
[1728817543693,0.15974528,62766.0,62765.0,0.0026357]
[1728817547902,0.0014,62766.0,62765.0,0.06629982]
[1728817548202,0.0014,62766.0,62765.0,0.0026357]
[1728817548599,0.0004,62771.0,62766.0,0.47796]
[1728817548790,0.0004,62771.0,62770.0,0.06364996]
[1728817549093,0.0004,62771.0,62770.0,0.47792]
[1728817549299,0.0004,62771.0,62770.0,1.07792]
[1728817549803,0.0004,62774.0,62770.0,1.43912]
[1728817550097,0.0004,62774.0,62773.0,0.06361559]
[1728817550297,0.0004,62774.0,62770.0,0.3612]
[1728817550604,0.0004,62771.0,62770.0,0.3612]
[1728817550895,0.1350877,62800.0,62770.0,1.04119859]
[1728817551098,0.0329,62796.0,62777.0,0.3612]
[1728817551287,0.0329,62796.0,62784.0,0.3608]
[1728817551889,0.0329,62796.0,62784.0,0.36578134]
[1728817551890,0.061869,62796.0,62784.0,0.36578134]
[1728817552099,0.061869,62796.0,62784.0,0.41343382]
[1728817552501,0.061869,62796.0,62784.0,0.36578134]
[1728817552700,0.061869,62796.0,62784.0,0.3608]
[1728817552902,0.061869,62796.0,62784.0,0.36578127]
[1728817553097,0.0124,62785.0,62784.0,0.36678127]
[1728817553296,0.0124,62785.0,62784.0,0.41440939]
[1728817553496,0.0124,62785.0,62784.0,0.3618]
[1728817553712,0.0254,62785.0,62784.0,0.3628]
[1728817553895,0.0254,62785.0,62784.0,0.36778135]
[1728817554096,0.0254,62785.0,62784.0,0.3628]
[1728817556797,0.0254,62785.0,62784.0,0.36778136]
[1728817557104,0.0254,62785.0,62784.0,0.3628]
[1728817557702,0.0254,62785.0,62784.0,1.44562136]
[1728817558398,0.0254,62785.0,62784.0,1.44064]
[1728817561707,0.0254,62785.0,62784.0,0.3628]
[1728817563099,0.0254,62785.0,62775.0,0.0321]
[1728817563100,0.18698728,62785.0,62775.0,0.0321]
[1728817563414,0.0004,62778.0,62775.0,0.0321]
[1728817563604,0.04679126,62778.0,62775.0,0.0321]
[1728817563804,0.16198728,62778.0,62775.0,0.0321]
[1728817564717,0.16198728,62778.0,62777.0,0.3622]
[1728817564903,0.16198728,62778.0,62777.0,1.44008]
[1728817565101,0.10065369,62778.0,62777.0,1.44008]
[1728817565296,0.10865369,62778.0,62777.0,1.44008]
[1728817565701,0.0084,62778.0,62777.0,1.44008]
[1728817565904,0.0054,62785.0,62778.0,0.47788]
[1728817566114,0.0004,62785.0,62784.0,0.3608]
[1728817566313,0.0004,62785.0,62784.0,0.9608]
[1728817566608,0.0004,62785.0,62784.0,1.43864]
[1728817568018,0.0074,62785.0,62784.0,1.43964]
[1728817569111,0.0134,62785.0,62784.0,1.43964]
[1728817569896,0.0144,62785.0,62784.0,1.44064]
[1728817570705,0.0144,62785.0,62784.0,0.84064]
[1728817570901,0.06852643,62785.0,62784.0,0.869508]
[1728817571117,0.06852643,62785.0,62784.0,0.3628]
[1728817571118,0.0144,62785.0,62784.0,0.3628]
[1728817571417,0.0144,62785.0,62784.0,0.002]
[1728817573715,0.0144,62785.0,62784.0,0.0495679]
[1728817574515,0.0144,62785.0,62784.0,0.002]
[1728817575212,0.0144,62785.0,62784.0,0.0495679]
[1728817576220,0.0144,62785.0,62784.0,0.002]
[1728817578119,0.05521756,62785.0,62784.0,0.002]
[1728817578517,0.05524594,62785.0,62784.0,0.002]
[1728817581215,0.1027041,62785.0,62784.0,0.002]
[1728817581417,0.10272685,62785.0,62784.0,0.002]
[1728817582925,0.05527225,62785.0,62784.0,0.002]
[1728817585919,0.0144,62785.0,62784.0,0.002]
[1728817586227,0.3919,62790.0,62784.0,0.3703742]
[1728817586525,0.3911,62790.0,62785.0,0.47942989]
[1728817586829,0.3911,62790.0,62786.0,0.22556244]
[1728817587018,0.3911,62790.0,62787.0,0.22556244]
[1728817587322,0.0004,62793.0,62788.0,0.58593932]
[1728817587523,0.0004,62793.0,62789.0,0.49402791]
[1728817587719,0.0004,62794.0,62791.0,0.12703861]
[1728817587925,0.0004,62794.0,62792.0,0.3669893]
[1728817588138,0.0004,62794.0,62793.0,0.3669893]
[1728817588626,0.0004,62794.0,62793.0,0.37196974]
[1728817588827,0.0074,62794.0,62793.0,0.37196974]
[1728817589217,0.0074,62794.0,62793.0,0.34150036]
[1728817589422,0.0074,62794.0,62793.0,0.23011976]
[1728817589728,0.0074,62794.0,62793.0,0.48306793]
[1728817590031,0.0074,62794.0,62793.0,0.23011976]
[1728817590217,0.0004,62794.0,62793.0,0.23011976]
[1728817590425,0.0004,62794.0,62793.0,0.23111976]
[1728817590618,0.0014,62794.0,62793.0,0.23211976]
[1728817591027,0.0014,62794.0,62793.0,0.34350036]
[1728817591234,0.0014,62794.0,62793.0,0.23211976]
[1728817591829,0.0014,62794.0,62793.0,0.23211977]
[1728817592134,0.0014,62794.0,62793.0,0.23211974]
[1728817592933,0.0014,62794.0,62793.0,0.22713932]
[1728817593136,0.12812994,62794.0,62793.0,0.002]
[1728817593429,0.09061776,62794.0,62793.0,0.002]
[1728817594323,0.28790749,62794.0,62793.0,0.00099028]
[1728817595135,0.28737769,62794.0,62793.0,0.00099028]
[1728817595319,0.14456585,62794.0,62793.0,0.00099028]
[1728817597428,0.28737769,62794.0,62793.0,0.00099028]
[1728817598924,0.2875735,62794.0,62793.0,0.00099028]
[1728817599232,0.14456585,62794.0,62793.0,0.00099028]
[1728817600118,0.14450292,62794.0,62793.0,0.00099028]
[1728817600323,0.09022447,62794.0,62793.0,0.00099028]
[1728817601024,0.0014,62794.0,62793.0,0.10352503]
[1728817601430,0.0014,62794.0,62793.0,0.22570398]
[1728817601631,0.0014,62794.0,62793.0,0.10352503]
[1728817601832,0.0014,62794.0,62793.0,0.22569201]
[1728817602138,0.0014,62794.0,62793.0,0.25829201]
[1728817603141,0.0014,62794.0,62793.0,0.61909201]
[1728817603335,0.0014,62794.0,62793.0,0.62407244]
[1728817604035,0.00238922,62798.0,62793.0,0.62447244]
[1728817604231,0.00238922,62798.0,62794.0,0.22968216]
[1728817604431,0.00238922,62798.0,62795.0,0.22900806]
[1728817604631,0.00238922,62798.0,62796.0,0.22402772]
[1728817604832,0.00238922,62798.0,62797.0,0.22402772]
[1728817606230,0.00838922,62798.0,62797.0,0.22402772]
[1728817606435,0.01038922,62798.0,62797.0,0.22402772]
[1728817607136,0.01038922,62798.0,62797.0,0.22602772]
[1728817607540,0.008,62798.0,62797.0,0.22602772]
[1728817608237,0.008,62798.0,62797.0,0.002]
[1728817608431,0.04945187,62798.0,62797.0,0.002]
[1728817608626,0.09757944,62798.0,62797.0,0.002]
[1728817609133,0.13512377,62798.0,62797.0,0.002]
[1728817609339,0.09757944,62798.0,62797.0,0.002]
[1728817610651,0.13513446,62798.0,62797.0,0.002]
[1728817611040,0.18326203,62798.0,62797.0,0.002]
[1728817611245,0.09757944,62798.0,62797.0,0.002]
[1728817613241,0.09757944,62798.0,62797.0,0.00098561]
[1728817613242,0.29531405,62798.0,62797.0,0.00098561]
[1728817613544,0.15100765,62798.0,62797.0,0.00098561]
[1728817614137,0.008,62798.0,62797.0,0.00098561]
[1728817614445,0.15207071,62798.0,62797.0,0.00098561]
[1728817615554,0.0493623,62798.0,62797.0,0.00596594]
[1728817615745,0.0493623,62798.0,62797.0,0.03676594]
[1728817615943,0.0493623,62798.0,62797.0,0.03676544]
[1728817616145,0.008,62798.0,62797.0,0.26075281]
[1728817617744,0.0004,62804.0,62797.0,0.26075281]
[1728817618051,0.0004,62804.0,62798.0,0.2289672]
[1728817618251,0.0004,62804.0,62799.0,0.22850715]
[1728817618444,0.0004,62804.0,62800.0,0.22850715]
[1728817618644,0.0004,62804.0,62803.0,0.45624238]
[1728817618844,0.0004,62804.0,62803.0,0.58920923]
[1728817619356,0.0004,62804.0,62803.0,0.58422933]
[1728817619857,0.0014,62804.0,62803.0,0.58422933]
[1728817620351,0.0014,62804.0,62803.0,0.58920892]
[1728817620653,0.0024,62804.0,62803.0,0.58920892]
[1728817620843,0.0014,62804.0,62803.0,0.58920892]
[1728817621153,0.0014,62804.0,62803.0,0.59020892]
[1728817621357,0.0014,62804.0,62803.0,0.59120892]
[1728817621743,0.0951,62812.0,62803.0,0.59020892]
[1728817621949,0.0951,62812.0,62809.0,0.09538138]
[1728817622149,0.0951,62812.0,62810.0,0.10197589]
[1728817623148,0.0951,62812.0,62803.0,0.3632]
[1728817623460,0.0951,62812.0,62804.0,0.0049796]
[1728817623652,0.0951,62812.0,62805.0,0.0049796]
[1728817623958,0.00338886,62811.0,62806.0,0.0049796]
[1728817624254,0.00338886,62811.0,62810.0,0.001]
[1728817624853,0.00238886,62811.0,62810.0,0.001]
[1728817625150,0.00338886,62811.0,62810.0,0.001]
[1728817626344,0.00338886,62811.0,62805.0,0.002]
[1728817626552,0.00338886,62811.0,62806.0,0.0049796]
[1728817626750,0.00338886,62811.0,62810.0,0.001]
[1728817627351,0.00338886,62811.0,62810.0,0.002]
[1728817630256,0.14907732,62811.0,62804.0,0.2831234]
[1728817630455,0.0004,62805.0,62804.0,0.2831234]
[1728817630657,0.0004,62805.0,62804.0,0.28810316]
[1728817630952,0.14608846,62805.0,62804.0,0.00497974]
[1728817631163,0.14608846,62805.0,62803.0,0.0004]
[1728817631356,0.14608846,62804.0,62803.0,0.0004]
[1728817631556,0.14608846,62804.0,62803.0,0.00537979]
[1728817632252,0.15922529,62804.0,62803.0,0.00537979]
[1728817632459,0.30491375,62804.0,62803.0,0.00537979]
[1728817632651,0.14608846,62804.0,62803.0,0.00537979]
[1728817632856,0.30491375,62804.0,62803.0,0.00537979]
[1728817633157,0.14608846,62804.0,62803.0,0.00537979]
[1728817633357,0.30491375,62804.0,62803.0,0.0004]
[1728817634859,0.30491375,62804.0,62803.0,0.0014]
[1728817634860,0.30691375,62804.0,62803.0,0.0014]
[1728817635162,0.14908846,62804.0,62803.0,0.0014]
[1728817635864,0.30791375,62804.0,62803.0,0.0014]
[1728817636255,0.14908846,62804.0,62803.0,0.0014]
[1728817637456,0.30791375,62804.0,62803.0,0.0014]
[1728817638364,0.15882529,62804.0,62803.0,0.22557663]
[1728817640071,0.15882529,62804.0,62803.0,0.22633301]
[1728817642567,0.00238808,62823.0,62804.0,0.47768]
[1728817642761,0.00238808,62823.0,62803.0,1.07900117]
[1728817642762,0.00238808,62823.0,62819.0,0.0954292]
[1728817643067,0.00238808,62823.0,62820.0,0.19786393]
[1728817643270,0.00238808,62823.0,62821.0,0.19786393]
[1728817643567,0.00238808,62823.0,62822.0,0.10243473]
[1728817644665,0.00238808,62823.0,62822.0,0.10308096]
[1728817645065,0.05990298,62824.0,62822.0,0.10408096]
[1728817645368,0.05990298,62824.0,62822.0,0.001]
[1728817646170,0.05990298,62824.0,62822.0,0.002]
[1728817646474,0.42070298,62824.0,62822.0,0.002]
[1728817647372,0.42070298,62824.0,62822.0,0.001]
[1728817647566,0.42070298,62824.0,62822.0,0.002]
[1728817653378,0.20342464,62823.0,62814.0,0.23435269]
[1728817653575,0.17510463,62815.0,62814.0,0.23435269]
[1728817653784,0.26221127,62815.0,62814.0,0.23435269]
[1728817654371,0.14079708,62815.0,62814.0,0.23435269]
[1728817654879,0.14079708,62815.0,62814.0,0.23535269]
[1728817655379,0.14079708,62815.0,62814.0,0.23635269]
[1728817655879,0.14079708,62815.0,62814.0,0.002]
[1728817657080,0.14179708,62815.0,62814.0,0.002]
[1728817657879,0.24731461,62815.0,62814.0,0.002]
[1728817658072,0.14179708,62815.0,62814.0,0.002]
[1728817658273,0.20050637,62815.0,62814.0,0.002]
[1728817658474,0.30059584,62815.0,62814.0,0.002]
[1728817659968,0.14179708,62815.0,62814.0,0.002]
[1728817660387,0.39018298,62824.0,62814.0,0.22952853]
[1728817660581,0.02850298,62824.0,62823.0,0.0794422]
[1728817660884,0.7216,62829.0,62823.0,0.18410626]
[1728817661184,0.7216,62829.0,62828.0,0.06355376]
[1728817661574,0.7216,62829.0,62828.0,0.05965376]
[1728817661775,0.0625,62830.0,62828.0,0.05965376]
[1728817661975,0.7216,62829.0,62828.0,0.05575376]
[1728817662777,0.09073954,62830.0,62828.0,0.05575376]
[1728817663083,0.7216,62829.0,62828.0,0.05575376]
[1728817663886,0.7216,62829.0,62824.0,0.0794422]
[1728817664182,0.7216,62829.0,62828.0,0.002]
[1728817665181,0.7216,62829.0,62828.0,0.001]
[1728817666890,0.09073954,62830.0,62828.0,0.001]
[1728817667083,0.7216,62829.0,62828.0,0.001]
[1728817667493,0.7216,62829.0,62828.0,0.002]
[1728817668490,0.76007968,62829.0,62828.0,0.002]
[1728817668880,0.76008901,62829.0,62828.0,0.002]
[1728817669583,0.03848901,62829.0,62828.0,0.002]
[1728817669888,0.76008901,62829.0,62828.0,0.002]
[1728817670779,0.03848901,62829.0,62828.0,0.002]
[1728817670982,0.76008901,62829.0,62828.0,0.002]
[1728817672385,0.03848901,62829.0,62828.0,0.002]
[1728817672588,0.76008901,62829.0,62817.0,0.04770106]
[1728817672783,0.0004,62818.0,62817.0,0.04770106]
[1728817673884,0.0004,62818.0,62817.0,0.04870106]
[1728817674084,0.0004,62818.0,62817.0,0.001]
[1728817674481,0.0004,62818.0,62817.0,0.002]
[1728817675277,0.0004,62818.0,62817.0,0.001]
[1728817675482,0.0004,62818.0,62817.0,0.10692108]
[1728817677378,0.0004,62818.0,62817.0,0.10693269]
[1728817678694,0.0004,62818.0,62817.0,0.23201532]
[1728817683488,0.03882725,62818.0,62817.0,0.002]
[1728817689597,0.39962725,62818.0,62817.0,0.002]
[1728817690096,0.39960667,62818.0,62817.0,0.002]
[1728817690497,0.15565702,62822.0,62817.0,0.23206019]
[1728817690498,0.02862383,62822.0,62817.0,0.23206019]
[1728817690684,0.3608,62819.0,62818.0,0.23006019]
[1728817691987,0.3608,62819.0,62818.0,0.23106019]
[1728817692800,0.3608,62819.0,62818.0,0.23206019]
[1728817694687,0.06183297,62825.0,62818.0,0.10655372]
[1728817694889,0.06183297,62825.0,62824.0,0.09555309]
[1728817695090,0.06183297,62825.0,62824.0,0.20010681]
[1728817695803,0.42263297,62825.0,62824.0,0.20010681]
[1728817697402,0.42263297,62825.0,62824.0,0.10555372]
[1728817697907,1.50015297,62825.0,62824.0,0.10555372]
[1728817698401,1.69654056,62825.0,62824.0,0.002]
[1728817698606,1.69654056,62825.0,62807.0,0.3608]
[1728817698808,0.0004,62812.0,62807.0,0.3608]
[1728817699003,0.21181596,62812.0,62807.0,0.3608]
[1728817699209,0.08448543,62812.0,62807.0,0.3608]
[1728817699409,0.08451285,62812.0,62807.0,0.3608]
[1728817699707,0.21184338,62812.0,62807.0,0.3608]
[1728817699901,0.21184338,62812.0,62811.0,0.03211986]
[1728817700297,0.08451285,62812.0,62811.0,0.03311986]
[1728817700501,0.21184338,62812.0,62811.0,0.03311986]
[1728817700904,0.21284338,62812.0,62811.0,0.03311986]
[1728817701301,0.08551285,62812.0,62811.0,0.03311986]
[1728817701910,0.08751285,62812.0,62811.0,0.03311986]
[1728817705505,0.12733053,62814.0,62811.0,0.53421677]
[1728817705713,0.12733053,62814.0,62812.0,0.37398062]
[1728817705914,0.12733053,62814.0,62813.0,0.37398062]
[1728817706816,0.12833053,62814.0,62813.0,0.37398062]
[1728817707203,0.12933053,62814.0,62813.0,0.37498062]
[1728817708814,0.12833053,62814.0,62813.0,0.37598062]
[1728817709015,0.001,62814.0,62813.0,0.37598062]
[1728817710709,0.3608,62818.0,62813.0,0.37598062]
[1728817710907,0.3608,62818.0,62817.0,0.11150866]
[1728817711109,0.3608,62818.0,62817.0,0.48548928]
[1728817713216,0.3608,62818.0,62817.0,0.34082242]
[1728817713418,0.3608,62818.0,62817.0,0.23031376]
[1728817713622,0.3608,62818.0,62817.0,0.23131376]
[1728817714915,0.06263297,62825.0,62817.0,0.23131376]
[1728817715114,0.06263297,62825.0,62823.0,0.09557945]
[1728817715115,0.42263297,62825.0,62823.0,0.09557945]
[1728817715419,0.06183297,62825.0,62824.0,0.10461577]
[1728817715619,1.26095297,62825.0,62824.0,0.10461577]
[1728817715818,1.86095297,62825.0,62824.0,0.10461577]
[1728817716616,1.26095297,62825.0,62824.0,0.10461577]
[1728817716919,1.26095297,62825.0,62824.0,0.10561577]
[1728817717314,0.53935297,62825.0,62824.0,0.10561577]
[1728817717515,1.26095297,62825.0,62824.0,0.10561577]
[1728817718021,0.53935297,62825.0,62824.0,0.10561577]
[1728817718220,1.26095297,62825.0,62824.0,0.10561577]
[1728817718420,0.53935297,62825.0,62824.0,0.10561577]
[1728817718713,1.26095297,62825.0,62824.0,0.10561577]
[1728817718919,0.53935297,62825.0,62824.0,0.10561577]
[1728817719118,1.26095297,62825.0,62824.0,0.20119522]
[1728817719315,1.26095297,62825.0,62824.0,0.20219522]
[1728817720721,0.81798055,62825.0,62824.0,0.002]
[1728817720921,0.1972137,62825.0,62824.0,0.002]
[1728817721120,0.9188137,62825.0,62824.0,0.002]
[1728817721417,0.1972137,62825.0,62824.0,0.002]
[1728817721724,0.9188137,62825.0,62824.0,0.002]
[1728817722020,1.06209111,62825.0,62824.0,0.002]
[1728817722524,0.34049111,62825.0,62824.0,0.002]
[1728817722723,0.70129111,62825.0,62824.0,0.002]
[1728817723116,0.34049111,62825.0,62824.0,0.002]
[1728817723423,0.70129111,62825.0,62824.0,0.002]
[1728817723624,0.34049111,62825.0,62824.0,0.002]
[1728817724010,0.70129111,62825.0,62824.0,0.002]
[1728817725728,0.34049111,62825.0,62824.0,0.002]
[1728817726325,0.70129111,62825.0,62824.0,0.002]
[1728817726722,0.34049111,62825.0,62824.0,0.002]
[1728817726923,0.70129111,62825.0,62824.0,0.002]
[1728817727728,0.70139636,62825.0,62824.0,0.002]
[1728817728120,0.34059636,62825.0,62824.0,0.002]
[1728817728426,0.70139636,62825.0,62824.0,0.002]
[1728817728627,0.42263297,62825.0,62824.0,0.10659297]
[1728817731728,0.06183297,62825.0,62824.0,0.10659297]
[1728817731937,0.42263297,62825.0,62824.0,0.10659297]
[1728817732321,0.42263297,62825.0,62824.0,0.10659695]
[1728817740739,0.42263297,62825.0,62824.0,0.002]
[1728817740937,0.42263297,62825.0,62824.0,0.10660342]
[1728817742035,0.06183297,62825.0,62824.0,0.10660342]
[1728817742235,0.42263297,62825.0,62824.0,0.10660342]
[1728817743037,0.06183297,62825.0,62824.0,0.10660342]
[1728817743239,0.42263297,62825.0,62824.0,0.10660342]